[Event "36th Indian-ch U13 Open 2023"]
[Site "Secunderabad"]
[Date "2023.12.09"]
[Round "10.5"]
[White "Arnav Mahesh Koli"]
[Black "Reyan"]
[Result "0-1"]
[ECO "B35"]
[WhiteElo "1769"]
[BlackElo "1842"]
[Annotator "NA RC"]
[PlyCount "146"]
[EventDate "2023.12.04"]
[EventType "swiss"]
[EventCountry "IND"]
[SourceTitle "playchess.com"]
[Source "ChessBase"]
[SourceQuality "1"]
[TimeControl "5400+30"]

1. e4 {[%emt 0:00:11]} c5 {[%emt 0:00:05]} 2. Nf3 {[%emt 0:00:05]} Nc6 {[%emt 0:00:05]} 3. d4 {[%emt 0:00:20]} cxd4 {[%emt 0:00:05]} 4. Nxd4 {[%emt 0:00:06]} g6 {[%emt 0:00:05]} 5. Nc3 {[%emt 0:01:01]} Bg7 {[%emt 0:00:06]} 6. Be3 {[%emt 0:00:10]} Nf6 {[%emt 0:00:09]} 7. f3 {[%emt 0:00:54]} O-O {[%emt 0:00:23]} 8. Bc4 {[%emt 0:00:30]} Qb6 {[%emt 0:00:15]} 9. Qd2 {[%emt 0:18:18]} Nxe4 {[%emt 0:02:19]} 10. fxe4 {[%emt 0:00:58]} Bxd4 {[%emt 0:01:22]} 11. Bxd4 {[%emt 0:03:33]} Qxd4 {[%emt 0:00:14]} 12. Bd3 {[%emt 0:08:28]} d6 {[%emt 0:01:59]} 13. O-O-O {[%emt 0:01:22]} Be6 {[%emt 0:00:33]} 14. Kb1 {[%emt 0:04:29]} Ne5 {[%emt 0:01:09]} 15. Ne2 {[%emt 0:01:32]} Qa4 {[%emt 0:01:55]} 16. b3 {[%emt 0:01:01]} Qa3 {[%emt 0:00:53]} 17. h4 {[%emt 0:07:09]} h5 {[%emt 0:00:16]} 18. Nd4 {[%emt 0:06:08]} a5 {[%emt 0:05:20]} 19. Nf5 {[%emt 0:05:26]} a4 {[%emt 0:17:04]} 20. Nxe7+ {[%emt 0:09:26]} Kg7 {[%emt 0:00:48]} 21. Qc3 {[%emt 0:08:03]} axb3 {[%emt 0:02:25]} 22. axb3 {[%emt 0:00:22]} Bg4 {[%emt 0:06:23]} 23. Rdf1 {[%emt 0:02:51]} Rfe8 {[%emt 0:08:39]} 24. Nd5 {[%emt 0:00:50]} Qa2+ {[%emt 0:00:09]} 25. Kc1 {[%emt 0:00:49]} Rac8 {[%emt 0:15:53]} 26. Qb2 {[%emt 0:01:25]} Qxb2+ {[%emt 0:00:10]} 27. Kxb2 {[%emt 0:00:00]} Nxd3+ {[%emt 0:00:01]} 28. cxd3 {[%emt 0:00:01]} Be2 {[%emt 0:00:01]} 29. Rf4 {[%emt 0:07:00]} Bxd3 {[%emt 0:01:41]} 30. Nc3 {[%emt 0:00:03]} Re6 {[%emt 0:02:19]} 31. Rd1 {[%emt 0:00:40]} Ba6 {[%emt 0:00:12]} 32. Rd2 {[%emt 0:00:47]} Rce8 {[%emt 0:10:20]} 33. Rdf2 {[%emt 0:00:38]} f6 {[%emt 0:00:01]} 34. Ka3 {[%emt 0:00:49]} Bd3 {[%emt 0:01:30]} 35. g3 {[%emt 0:01:23]} f5 {[%emt 0:02:58]} 36. exf5 {[%emt 0:00:01]} Bxf5 {[%emt 0:00:02]} 37. Nb5 {[%emt 0:00:34]} Ra8+ {[%emt 0:02:15]} 38. Kb4 {[%emt 0:00:21]} d5 {[%emt 0:05:54]} 39. Nd4 {[%emt 0:01:05]} Re4 {[%emt 0:00:49]} 40. Kc5 $11 {[%emt 0:01:24]} Rc8+ {[%emt 0:05:02]} 41. Kb6 {[%emt 0:02:09]} Rc3 {[%emt 0:00:24]} 42. Rxe4 {[%emt 0:00:55]} dxe4 {[%emt 0:00:51]} 43. b4 {[%emt 0:00:43]} Bc8 {[%emt 0:01:04]} 44. Rc2 {[%emt 0:01:59]} Rxc2 {[%emt 0:00:09]} 45. Nxc2 {[%emt 0:00:03]} Kf6 {[%emt 0:01:12]} 46. Kc7 {[%emt 0:00:00]} Be6 {[%emt 0:03:14]} 47. Kxb7 {[%emt 0:00:07]} Bb3 {[%emt 0:01:24]} 48. Ne3 {[%emt 0:03:23]} Ke5 {[%emt 0:00:16]} 49. Kc7 {[%emt 0:00:27]} Kd4 {[%emt 0:00:20]} 50. Ng2 {[%emt 0:00:40]} e3 {[%emt 0:01:39]} 51. b5 {[%emt 0:02:43]} e2 {[%emt 0:02:01]} 52. b6 {[%emt 0:00:13]} Bd5 {[%emt 0:00:16]} 53. b7 {[%emt 0:00:20]} Bxb7 {[%emt 0:01:06]} 54. Kxb7 {[%emt 0:00:01]} Ke4 {[%emt 0:00:00]} 55. Kc6 {[%emt 0:00:59]} Kf3 {[%emt 0:00:04]} 56. Ne1+ {[%emt 0:00:20]} Kxg3 {[%emt 0:01:10]} 57. Kd5 {[%emt 0:00:02]} Kxh4 {[%emt 0:00:27]} 58. Ke4 {[%emt 0:00:00]} Kg3 {[%emt 0:00:25]} 59. Ke3 {[%emt 0:00:15]} h4 {[%emt 0:01:08]} 60. Kxe2 {[%emt 0:00:44]} h3 {[%emt 0:00:17]} 61. Nd3 {[%emt 0:00:36]} h2 {[%emt 0:00:09]} 62. Nf2 {[%emt 0:00:05]} Kg2 {[%emt 0:00:31]} 63. Ke3 {[%emt 0:01:18]} g5 {[%emt 0:00:06]} 64. Ke2 {[%emt 0:00:29]} g4 {[%emt 0:00:12]} 65. Nxg4 {[%emt 0:00:04]} h1=Q {[%emt 0:00:04]} 66. Ne3+ {[%emt 0:00:04]} Kg3 {[%emt 0:00:05]} 67. Nf1+ {[%emt 0:00:05]} Kf4 {[%emt 0:00:05]} 68. Nd2 {[%emt 0:00:11]} Qd5 {[%emt 0:00:12]} 69. Nf1 {[%emt 0:00:17]} Qa2+ {[%emt 0:00:19]} 70. Nd2 {[%emt 0:00:15]} Qc2 {[%emt 0:00:15]} 71. Ke1 {[%emt 0:00:15]} Ke3 {[%emt 0:00:12]} 72. Nf1+ {[%emt 0:00:03]} Kd3 {[%emt 0:00:04]} 73. Ng3 {[%emt 0:00:05]} Qg2 {[%emt 0:00:10]} 0-1

[Event "36th Indian-ch U13 Open 2023"]
[Site "Secunderabad"]
[Date "2023.12.09"]
[Round "10.6"]
[White "Talla Nischal"]
[Black "Adharsh K"]
[Result "0-1"]
[ECO "A48"]
[WhiteElo "1564"]
[BlackElo "1831"]
[Annotator "NA RC"]
[PlyCount "104"]
[EventDate "2023.12.04"]
[EventType "swiss"]
[EventCountry "IND"]
[SourceTitle "playchess.com"]
[Source "ChessBase"]
[SourceQuality "1"]
[TimeControl "5400+30"]

1. d4 {[%emt 0:00:04]} Nf6 {[%emt 0:00:50]} 2. Bf4 {[%emt 0:00:11]} g6 {[%emt 0:00:42]} 3. e3 {[%emt 0:00:09]} Bg7 {[%emt 0:00:03]} 4. Nf3 {[%emt 0:00:51]} O-O {[%emt 0:00:08]} 5. Be2 {[%emt 0:00:04]} d6 {[%emt 0:00:14]} 6. h3 {[%emt 0:00:24]} Nbd7 {[%emt 0:00:49]} 7. O-O {[%emt 0:00:33]} Re8 {[%emt 0:02:18]} 8. c3 {[%emt 0:06:20]} h6 {[%emt 0:03:41]} 9. Bh2 {[%emt 0:01:31]} b6 {[%emt 0:01:38]} 10. Nbd2 {[%emt 0:02:43]} Bb7 {[%emt 0:00:12]} 11. Qc2 {[%emt 0:01:29]} a5 {[%emt 0:03:10]} 12. Bc4 {[%emt 0:01:48]} e6 {[%emt 0:04:17]} 13. e4 {[%emt 0:04:09]} Nxe4 {[%emt 0:06:28]} 14. Nxe4 {[%emt 0:00:15]} d5 {[%emt 0:00:06]} 15. Bd3 {[%emt 0:01:03]} dxe4 {[%emt 0:02:27]} 16. Bxe4 {[%emt 0:00:08]} Qc8 {[%emt 0:00:34]} 17. Rfe1 {[%emt 0:05:25]} Nf6 {[%emt 0:00:51]} 18. Bxb7 {[%emt 0:00:49]} Qxb7 {[%emt 0:00:04]} 19. Be5 {[%emt 0:00:23]} Rac8 {[%emt 0:08:14]} 20. Qd2 {[%emt 0:01:31]} Nd7 {[%emt 0:04:15]} 21. Bxg7 {[%emt 0:05:57]} Kxg7 {[%emt 0:00:04]} 22. Ne5 {[%emt 0:00:13]} Nxe5 {[%emt 0:01:26]} 23. dxe5 {[%emt 0:03:48]} Qd5 {[%emt 0:08:46]} 24. Qf4 {[%emt 0:00:15]} Rcd8 {[%emt 0:02:30]} 25. Qf6+ {[%emt 0:00:49]} Kg8 {[%emt 0:00:04]} 26. Re3 {[%emt 0:02:33]} Qd2 {[%emt 0:04:04]} 27. h4 {[%emt 0:01:44]} h5 {[%emt 0:05:41]} 28. Rf3 {[%emt 0:15:43]} Rd7 {[%emt 0:00:35]} 29. Rf4 {[%emt 0:00:26]} Qxb2 {[%emt 0:01:23]} 30. Re1 {[%emt 0:00:37]} Qa3 {[%emt 0:02:15]} 31. Qg5 {[%emt 0:00:30]} Qxa2 {[%emt 0:12:43]} 32. g4 {[%emt 0:02:10]} Qd2 {[%emt 0:04:21]} 33. Rf1 {[%emt 0:01:27]} Qe2 {[%emt 0:04:19]} 34. Kg2 {[%emt 0:06:16]} b5 {[%emt 0:03:54]} 35. gxh5 {[%emt 0:02:54]} Qxh5 {[%emt 0:00:23]} 36. Qf6 {[%emt 0:00:10]} Rf8 {[%emt 0:01:06]} 37. Rf3 {[%emt 0:01:01]} a4 {[%emt 0:02:36]} 38. Rg3 {[%emt 0:02:25]} Qf5 {[%emt 0:00:41]} 39. h5 {[%emt 0:00:27]} Qxf6 {[%emt 0:00:06]} 40. exf6 {[%emt 0:00:05]} Rd5 {[%emt 0:02:02]} 41. Rh1 {[%emt 0:00:12]} c5 {[%emt 0:01:49]} 42. hxg6 {[%emt 0:00:36]} fxg6 {[%emt 0:00:06]} 43. Rgh3 {[%emt 0:02:53]} Kf7 {[%emt 0:00:51]} 44. Rf3 {[%emt 0:00:07]} Rf5 {[%emt 0:00:32]} 45. Rd3 {[%emt 0:00:38]} Kxf6 {[%emt 0:00:04]} 46. Kg3 {[%emt 0:00:14]} b4 {[%emt 0:01:04]} 47. cxb4 {[%emt 0:00:06]} cxb4 {[%emt 0:00:07]} 48. Rh4 {[%emt 0:00:05]} Rb8 {[%emt 0:00:16]} 49. Rd7 {[%emt 0:00:16]} b3 {[%emt 0:00:28]} 50. Rhh7 {[%emt 0:00:49]} b2 {[%emt 0:00:21]} 51. f4 {[%emt 0:00:08]} Rb3+ {[%emt 0:00:23]} 52. Kg4 {[%emt 0:00:10]} Rxf4+ {[%emt 0:00:04]} 0-1

[Event "36th Indian-ch U13 Open 2023"]
[Site "Secunderabad"]
[Date "2023.12.09"]
[Round "10.7"]
[White "Vihaan Dumir"]
[Black "Vandan Alankar Sawai"]
[Result "0-1"]
[ECO "C02"]
[WhiteElo "1798"]
[BlackElo "1619"]
[Annotator "NA RC"]
[PlyCount "110"]
[EventDate "2023.12.04"]
[EventType "swiss"]
[EventCountry "IND"]
[SourceTitle "playchess.com"]
[Source "ChessBase"]
[SourceQuality "1"]
[TimeControl "5400+30"]

1. e4 {[%emt 0:00:02]} e6 {[%emt 0:00:20]} 2. d4 {[%emt 0:00:08]} d5 {[%emt 0:00:09]} 3. e5 {[%emt 0:00:15]} c5 {[%emt 0:00:09]} 4. c3 {[%emt 0:00:09]} Nc6 {[%emt 0:00:05]} 5. Nf3 {[%emt 0:00:06]} Qb6 {[%emt 0:00:05]} 6. a3 {[%emt 0:00:08]} Nh6 {[%emt 0:00:34]} 7. Bd3 {[%emt 0:00:08]} Bd7 {[%emt 0:03:45]} 8. Bc2 {[%emt 0:00:17]} cxd4 {[%emt 0:01:25]} 9. cxd4 {[%emt 0:00:10]} Nf5 {[%emt 0:00:09]} 10. Bxf5 {[%emt 0:00:07]} exf5 {[%emt 0:00:05]} 11. Nc3 {[%emt 0:00:11]} Be6 {[%emt 0:00:19]} 12. O-O {[%emt 0:00:10]} Be7 {[%emt 0:01:13]} 13. b4 {[%emt 0:01:27]} O-O {[%emt 0:00:34]} 14. Qd3 {[%emt 0:00:28]} Rfc8 {[%emt 0:01:20]} 15. Bd2 {[%emt 0:02:02]} Nb8 {[%emt 0:08:56]} 16. Rfc1 {[%emt 0:10:55]} Nd7 {[%emt 0:01:52]} 17. h4 {[%emt 0:03:22]} h6 {[%emt 0:06:00]} 18. g3 {[%emt 0:05:39]} Qd8 {[%emt 0:00:30]} 19. h5 {[%emt 0:13:58]} Nb6 {[%emt 0:00:53]} 20. Ne2 {[%emt 0:22:19]} Qd7 {[%emt 0:00:59]} 21. Nf4 {[%emt 0:03:16]} Nc4 {[%emt 0:02:00]} 22. Qb3 {[%emt 0:05:17]} Rc7 {[%emt 0:00:50]} 23. Bc3 {[%emt 0:04:28]} Rac8 {[%emt 0:00:45]} 24. Rc2 {[%emt 0:00:41]} Nb6 {[%emt 0:11:39]} 25. Rac1 {[%emt 0:00:42]} Qa4 {[%emt 0:00:32]} 26. Nd2 {[%emt 0:00:59]} Bg5 {[%emt 0:03:08]} 27. Nxe6 {[%emt 0:14:06]} fxe6 {[%emt 0:09:04]} 28. f4 {[%emt 0:00:04]} Be7 {[%emt 0:00:13]} 29. Qxa4 {[%emt 0:02:57]} Nxa4 {[%emt 0:00:07]} 30. Nb1 {[%emt 0:00:05]} Rc4 {[%emt 0:00:48]} 31. Kf2 {[%emt 0:00:15]} Bd8 {[%emt 0:00:08]} 32. Ke2 {[%emt 0:03:30]} Bb6 {[%emt 0:00:08]} 33. Kd3 {[%emt 0:00:12]} Nxc3 {[%emt 0:00:09]} 34. Rxc3 {[%emt 0:01:30]} Rxd4+ {[%emt 0:00:05]} 35. Ke2 {[%emt 0:00:17]} Re4+ {[%emt 0:00:29]} 36. Kf3 {[%emt 0:02:06]} Re3+ {[%emt 0:00:43]} 37. Kg2 {[%emt 0:00:02]} Rexc3 {[%emt 0:00:15]} 38. Rxc3 {[%emt 0:00:31]} Rxc3 {[%emt 0:00:22]} 39. Nxc3 {[%emt 0:00:05]} a6 {[%emt 0:00:13]} 40. Kf3 {[%emt 0:00:22]} Kf7 {[%emt 0:00:45]} 41. a4 {[%emt 0:03:15]} g6 {[%emt 0:00:50]} 42. g4 {[%emt 0:01:20]} d4 {[%emt 0:01:58]} 43. Nd1 {[%emt 0:00:31]} fxg4+ {[%emt 0:00:49]} 44. Kxg4 {[%emt 0:00:06]} d3 {[%emt 0:00:06]} 45. Kh4 {[%emt 0:03:17]} Bd4 {[%emt 0:00:13]} 46. b5 {[%emt 0:00:31]} axb5 {[%emt 0:00:09]} 47. axb5 {[%emt 0:00:05]} b6 {[%emt 0:00:02]} 48. Kg4 {[%emt 0:00:51]} gxh5+ {[%emt 0:00:05]} 49. Kxh5 {[%emt 0:00:24]} Kg7 {[%emt 0:00:04]} 50. Kg4 {[%emt 0:00:58]} Kg6 {[%emt 0:00:03]} 51. Kg3 {[%emt 0:00:31]} Kf5 {[%emt 0:00:05]} 52. Kf3 {[%emt 0:00:08]} h5 {[%emt 0:00:07]} 53. Kg3 {[%emt 0:00:26]} h4+ {[%emt 0:00:13]} 54. Kxh4 {[%emt 0:00:41]} Kxf4 {[%emt 0:00:03]} 55. Kh3 {[%emt 0:00:19]} Kf3 {[%emt 0:00:04]} 0-1

[Event "36th Indian-ch U13 Open 2023"]
[Site "Secunderabad"]
[Date "2023.12.09"]
[Round "10.9"]
[White "Mrinmoy Rajkhowa"]
[Black "Dhruv Singh Bisht"]
[Result "1-0"]
[ECO "B30"]
[WhiteElo "1840"]
[BlackElo "1538"]
[Annotator "NA RC"]
[PlyCount "69"]
[EventDate "2023.12.04"]
[EventType "swiss"]
[EventCountry "IND"]
[SourceTitle "playchess.com"]
[Source "ChessBase"]
[SourceQuality "1"]
[TimeControl "5400+30"]

1. e4 {[%emt 0:00:07]} c5 {[%emt 0:00:22]} 2. Nf3 {[%emt 0:00:04]} Nc6 {[%emt 0:00:22]} 3. Bc4 {[%emt 0:00:52]} e6 {[%emt 0:01:38]} 4. O-O {[%emt 0:00:07]} Nf6 {[%emt 0:00:52]} 5. Re1 {[%emt 0:02:11]} a6 {[%emt 0:01:05]} 6. Bf1 {[%emt 0:08:03]} d5 {[%emt 0:04:08]} 7. exd5 {[%emt 0:01:36]} Nxd5 {[%emt 0:00:18]} 8. d4 {[%emt 0:02:06]} Be7 {[%emt 0:03:35]} 9. c4 {[%emt 0:07:47]} Nf6 {[%emt 0:07:28]} 10. Be3 {[%emt 0:00:37]} cxd4 {[%emt 0:06:30]} 11. Nxd4 {[%emt 0:00:05]} Nxd4 {[%emt 0:00:33]} 12. Bxd4 {[%emt 0:00:50]} O-O {[%emt 0:01:58]} 13. Nc3 {[%emt 0:00:32]} Bd7 {[%emt 0:04:22]} 14. Qd2 {[%emt 0:08:11]} Bc6 {[%emt 0:05:55]} 15. Rad1 {[%emt 0:00:53]} Nd7 {[%emt 0:06:48]} 16. Ne4 {[%emt 0:13:54]} e5 {[%emt 0:07:34]} 17. Bc3 {[%emt 0:07:05]} f5 {[%emt 0:05:03]} 18. Nd6 {[%emt 0:02:58]} Bg5 {[%emt 0:11:15]} 19. Qd3 {[%emt 0:09:51]} e4 {[%emt 0:09:04]} 20. Qh3 {[%emt 0:01:18]} g6 {[%emt 0:06:10]} 21. c5 {[%emt 0:09:23]} Bf6 {[%emt 0:02:59]} 22. Nxb7 {[%emt 0:02:45]} Qe7 {[%emt 0:05:07]} 23. Bc4+ {[%emt 0:08:34]} Kh8 {[%emt 0:00:42]} 24. Na5 {[%emt 0:01:24]} Bb5 {[%emt 0:03:29]} 25. Bxf6+ {[%emt 0:07:00]} Nxf6 {[%emt 0:00:32]} 26. b4 {[%emt 0:01:09]} Rad8 {[%emt 0:01:24]} 27. Rxd8 {[%emt 0:00:57]} Qxd8 {[%emt 0:00:16]} 28. Qc3 {[%emt 0:00:15]} f4 {[%emt 0:01:04]} 29. Rxe4 {[%emt 0:01:06]} f3 {[%emt 0:02:00]} 30. g3 {[%emt 0:01:21]} Bxc4 {[%emt 0:00:46]} 31. Nxc4 {[%emt 0:00:05]} Kg8 {[%emt 0:00:54]} 32. Re1 {[%emt 0:00:21]} Qd5 {[%emt 0:01:17]} 33. Ne5 {[%emt 0:01:07]} Re8 {[%emt 0:00:35]} 34. Nxf3 {[%emt 0:01:46]} Re4 {[%emt 0:00:32]} 35. Qxf6 {[%emt 0:00:40]} 1-0

[Event "36th Indian-ch U13 Open 2023"]
[Site "Secunderabad"]
[Date "2023.12.09"]
[Round "10.10"]
[White "Madhvendra Pratap Sharma"]
[Black "Sagnik Dutta"]
[Result "1-0"]
[ECO "C52"]
[WhiteElo "1803"]
[BlackElo "1520"]
[Annotator "NA RC"]
[PlyCount "91"]
[EventDate "2023.12.04"]
[EventType "swiss"]
[EventCountry "IND"]
[SourceTitle "playchess.com"]
[Source "ChessBase"]
[SourceQuality "1"]
[TimeControl "5400+30"]

1. e4 {[%emt 0:00:40]} e5 {[%emt 0:00:14]} 2. Nf3 {[%emt 0:00:05]} Nc6 {[%emt 0:00:10]} 3. Bc4 {[%emt 0:00:09]} Bc5 {[%emt 0:00:08]} 4. b4 {[%emt 0:00:04]} Bxb4 {[%emt 0:00:38]} 5. c3 {[%emt 0:00:03]} Ba5 {[%emt 0:00:21]} 6. d4 {[%emt 0:00:06]} exd4 {[%emt 0:01:07]} 7. O-O {[%emt 0:00:29]} d6 {[%emt 0:07:30]} 8. Qb3 {[%emt 0:05:07]} Qe7 {[%emt 0:04:15]} 9. cxd4 {[%emt 0:01:40]} Bb6 {[%emt 0:12:55]} 10. Nc3 {[%emt 0:10:46]} Na5 {[%emt 0:14:11]} 11. Qa4+ {[%emt 0:05:16]} Bd7 {[%emt 0:02:03]} 12. Bb5 {[%emt 0:00:13]} Bxb5 {[%emt 0:04:47]} 13. Qxb5+ {[%emt 0:00:23]} Qd7 {[%emt 0:01:45]} 14. Qe2 {[%emt 0:06:40]} Nc6 {[%emt 0:04:09]} 15. Bb2 {[%emt 0:03:45]} Nge7 {[%emt 0:06:16]} 16. Rad1 {[%emt 0:03:33]} O-O {[%emt 0:14:34]} 17. d5 {[%emt 0:07:48]} Ne5 {[%emt 0:01:11]} 18. Nxe5 {[%emt 0:00:32]} dxe5 {[%emt 0:00:05]} 19. Nb5 {[%emt 0:02:37]} Ng6 {[%emt 0:01:15]} 20. g3 {[%emt 0:00:40]} a6 {[%emt 0:07:28]} 21. Na3 {[%emt 0:00:12]} Bc5 {[%emt 0:00:11]} 22. Nc4 {[%emt 0:00:06]} Bd6 {[%emt 0:00:09]} 23. Ne3 {[%emt 0:02:30]} Qb5 {[%emt 0:00:24]} 24. Qc2 {[%emt 0:00:23]} Ne7 {[%emt 0:00:53]} 25. Rd3 {[%emt 0:03:13]} Qd7 {[%emt 0:00:22]} 26. Rb3 {[%emt 0:07:09]} b5 {[%emt 0:00:15]} 27. f4 {[%emt 0:00:22]} f6 {[%emt 0:00:24]} 28. f5 {[%emt 0:01:31]} Nc8 {[%emt 0:00:43]} 29. Ba3 {[%emt 0:03:38]} Bxa3 {[%emt 0:01:47]} 30. Rxa3 {[%emt 0:00:05]} Nd6 {[%emt 0:00:15]} 31. Rc3 {[%emt 0:00:52]} Rfc8 {[%emt 0:00:05]} 32. Rc1 {[%emt 0:00:22]} Ra7 {[%emt 0:03:08]} 33. Rc6 {[%emt 0:00:22]} Ne8 {[%emt 0:04:31]} 34. Qc5 {[%emt 0:00:55]} Raa8 {[%emt 0:00:07]} 35. Kg2 {[%emt 0:02:10]} Rcb8 {[%emt 0:02:06]} 36. Nc2 {[%emt 0:06:46]} Nd6 {[%emt 0:01:59]} 37. Kf3 {[%emt 0:01:11]} Rb7 {[%emt 0:00:39]} 38. Nb4 {[%emt 0:01:41]} Nc4 {[%emt 0:00:47]} 39. Nxa6 {[%emt 0:10:40]} Rb6 {[%emt 0:03:27]} 40. Nxc7 {[%emt 0:05:41]} Rxc6 {[%emt 0:00:10]} 41. Qxc6 {[%emt 0:00:11]} Qxc6 {[%emt 0:00:46]} 42. dxc6 {[%emt 0:00:02]} Rc8 {[%emt 0:00:24]} 43. Nd5 {[%emt 0:02:01]} Kf7 {[%emt 0:00:20]} 44. c7 {[%emt 0:00:19]} Nd2+ {[%emt 0:00:29]} 45. Ke2 {[%emt 0:01:03]} Nc4 {[%emt 0:00:04]} 46. a4 {[%emt 0:00:13]} 1-0

[Event "36th Indian-ch U13 Open 2023"]
[Site "Secunderabad"]
[Date "2023.12.10"]
[Round "11.1"]
[White "Venkat, Raghav"]
[Black "Sriram Adarsh Uppala"]
[Result "0-1"]
[ECO "B28"]
[WhiteElo "2205"]
[BlackElo "1902"]
[Annotator "RC"]
[PlyCount "98"]
[EventDate "2023.12.04"]
[EventType "swiss"]
[EventCountry "IND"]
[SourceTitle "playchess.com"]
[Source "ChessBase"]
[SourceQuality "1"]
[TimeControl "5400+30"]

1. e4 {[%emt 0:00:02]} c5 {[%emt 0:00:22]} 2. Nf3 {[%emt 0:00:05]} a6 {[%emt 0:02:07]} 3. c3 {[%emt 0:02:09]} d5 {[%emt 0:00:12]} 4. exd5 {[%emt 0:00:32]} Qxd5 {[%emt 0:00:08]} 5. d4 {[%emt 0:00:25]} e6 {[%emt 0:00:48]} 6. Be2 {[%emt 0:02:49]} Nd7 {[%emt 0:01:24]} 7. O-O {[%emt 0:04:40]} Ngf6 {[%emt 0:00:21]} 8. Be3 {[%emt 0:08:21]} b6 {[%emt 0:01:41]} 9. Nfd2 {[%emt 0:05:24]} Qf5 {[%emt 0:04:35]} 10. Bf3 {[%emt 0:07:28]} Ra7 {[%emt 0:02:00]} 11. c4 {[%emt 0:07:38]} cxd4 {[%emt 0:02:50]} 12. Bxd4 {[%emt 0:00:16]} Bd6 {[%emt 0:00:13]} 13. Nb3 {[%emt 0:04:02]} Bc7 {[%emt 0:01:35]} 14. Be3 {[%emt 0:03:28]} Ne5 {[%emt 0:05:52]} 15. Bd4 {[%emt 0:16:11]} O-O {[%emt 0:02:16]} 16. Be2 {[%emt 0:01:26]} Bb7 {[%emt 0:01:56]} 17. N1d2 {[%emt 0:07:09]} Rd8 {[%emt 0:01:40]} 18. f3 {[%emt 0:02:01]} Qg5 {[%emt 0:04:30]} 19. Bf2 {[%emt 0:03:01]} Nh5 {[%emt 0:00:35]} 20. Kh1 {[%emt 0:05:42]} Nf4 {[%emt 1:05:25]} 21. Bg3 {[%emt 0:00:50]} h5 {[%emt 0:00:00]} 22. Rg1 {[%emt 0:03:50]} h4 {[%emt 0:00:00]} 23. Bf2 {[%emt 0:00:16]} h3 {[%emt 0:00:00]} 24. gxh3 {[%emt 0:00:03]} Qh5 {[%emt 0:00:00]} 25. Rg3 {[%emt 0:00:29]} Ned3 {[%emt 0:00:00]} 26. Qg1 {[%emt 0:01:59]} Nxf2+ {[%emt 0:00:00]} 27. Qxf2 {[%emt 0:00:04]} Nxe2 {[%emt 0:00:00]} 28. Qxe2 {[%emt 0:00:08]} Bxg3 {[%emt 0:00:00]} 29. hxg3 {[%emt 0:00:04]} Qxh3+ {[%emt 0:00:00]} 30. Qh2 {[%emt 0:00:02]} Qxh2+ {[%emt 0:00:00]} 31. Kxh2 {[%emt 0:00:03]} Rd3 {[%emt 0:00:00]} 32. Kg2 {[%emt 0:00:04]} a5 {[%emt 0:00:00]} 33. Kf2 {[%emt 0:00:36]} Ra8 {[%emt 0:00:00]} 34. Ke2 {[%emt 0:00:18]} Rad8 {[%emt 0:00:00]} 35. a4 {[%emt 0:00:24]} Bxf3+ {[%emt 0:00:00]} 36. Nxf3 {[%emt 0:00:06]} Rxb3 {[%emt 0:00:00]} 37. Rb1 {[%emt 0:00:03]} Rc8 {[%emt 0:00:00]} 38. Nd2 {[%emt 0:00:08]} Rxg3 {[%emt 0:00:00]} 39. b4 {[%emt 0:00:03]} Ra3 {[%emt 0:00:00]} 40. Ne4 {[%emt 0:00:53]} Rxc4 {[%emt 0:00:00]} 41. Ng5 {[%emt 0:00:09]} axb4 {[%emt 0:00:00]} 42. Rd1 {[%emt 0:00:04]} Rc8 {[%emt 0:00:00]} 43. Rd7 {[%emt 0:00:04]} Rxa4 {[%emt 0:00:00]} 44. Kd2 {[%emt 0:00:08]} b3 {[%emt 0:00:00]} 45. Rb7 {[%emt 0:00:12]} Rb4 {[%emt 0:00:00]} 46. Nxf7 {[%emt 0:00:04]} b2 {[%emt 0:00:00]} 47. Ng5 {[%emt 0:00:04]} b1=Q {[%emt 0:00:00]} 48. Nxe6 {[%emt 0:00:03]} Qc2+ {[%emt 0:00:00]} 49. Ke3 {[%emt 0:00:04]} Rc3# {[%emt 0:00:00]} 0-1